Cogmind - Beta 15 @@@ ROGUE MODE // 2025.06.16 @ 20:51:09 Player: Spitfire Result: Destroyed by S-27 Virus with Autogun Performance ------------- Evolutions (6) 3000 Regions Visited (10) 2000 Robots Destroyed (143) 715 Value Destroyed (5174) 5174 Prototype IDs (11) 220 Alien Tech Used (0) 0 Bonus (183) 183 TOTAL SCORE: 11292 Bonus ------- High Alert Combat Kills 28 Follower Combat Kills 210 Friendly Fire -55 Cogmind --------- Core Integrity 0/1150 Matter 300/300 Energy 74/100 System Corruption 8% Temperature Cool (0) Movement Core (50) Location -4/Upper Caves Parts ------- > --- POWER (2) -------- (None) > --- PROPULSION (4) --- (None) > --- UTILITY (8) ------ Advanced Signal Interpreter Hacking Suite > --- WEAPON (5) ------- (None) > --- INVENTORY (5) ---- Quantum Capacitor Dispersion Rifle Peak State ------------ > --- POWER ------------ Light Angular Momentum Engine Neutrino Core > --- PROPULSION ------- Armored Treads Armored Treads Armored Medium Treads > --- UTILITY ---------- Advanced Cooling System Medium Storage Unit Improved Targeting Computer Advanced Targeting Computer Weapon Cycler Improved Medium Armor Plating Improved Medium Armor Plating Hacking Suite > --- WEAPON ----------- Improved Spread Laser Heavy Ion Cannon Phase Cannon Advanced Assault Cannon > --- INVENTORY -------- Light Angular Momentum Engine Improved Treads Armored Treads Improved Cooling System Improved Medium Armor Plating Improved Medium Armor Plating Improved Medium Armor Plating Improved Medium Armor Plating Heavy Rocket Launcher [Rating: 71] Favorites ----------- Power Light Deuterium Engine Engine Light Deuterium Engine Power Core Neutrino Core Propulsion Armored Treads Treads Armored Treads Leg Aluminum Leg Wheel Wheel Utility Hacking Suite Device Improved Cooling System Storage Medium Storage Unit Processor Advanced Targeting Computer Hackware Hacking Suite Protection Improved Medium Armor Plating Weapon Improved Spread Laser Energy Gun Improved Spread Laser Energy Cannon Particle Cannon Ballistic Gun Flak Gun Ballistic Cannon Advanced Assault Cannon Launcher Heavy Rocket Launcher Build | -11 -10 -10 -9 -8 -7 -6 -5 -5 -4 -4 ------- Run | Yrd Mat Min Mat Mat Fac Fac Fac Ext Fac Upp Slots Evolved 12 | . . . 2 2 2 2 2 . 2 . Power 1 | . . . . . 1 . . . . . Propulsion 2 | . . . . 1 . . . . 1 . Utility 6 | . . . 1 1 1 1 2 . . . Weapon 3 | . . . 1 . . 1 . . 1 . Parts Attached 106 | 6 6 . 10 17 30 1 10 21 5 . Power 14 | 1 2 . 1 2 3 . 2 3 . . Engine 12 | 1 2 . 1 2 3 . 1 2 . . Core 2 | . . . . . . . 1 1 . . Reactor . | . . . . . . . . . . . Propulsion 24 | 2 2 . 2 3 12 . 1 2 . . Treads 6 | . . . . . 4 . 1 1 . . Leg 5 | . . . . 2 3 . . . . . Wheel 13 | 2 2 . 2 1 5 . . 1 . . Hover . | . . . . . . . . . . . Flight . | . . . . . . . . . . . Utility 41 | 1 2 . 1 7 10 1 7 9 3 . Device 12 | . 1 . . 2 3 1 2 1 2 . Storage 3 | 1 1 . . . . . 1 . . . Processor 5 | . . . . . 3 . 1 . 1 . Hackware 3 | . . . . 1 . . . 2 . . Protection 18 | . . . 1 4 4 . 3 6 . . Artifact . | . . . . . . . . . . . Weapon 27 | 2 . . 6 5 5 . . 7 2 . Energy Gun 10 | 2 . . 1 2 2 . . 1 2 . Energy Cannon 5 | . . . 1 2 . . . 2 . . Ballistic Gun 9 | . . . 4 1 1 . . 3 . . Ballistic Cannon 2 | . . . . . 2 . . . . . Launcher 1 | . . . . . . . . 1 . . Special Weapon . | . . . . . . . . . . . Impact Weapon . | . . . . . . . . . . . Slashing Weapon . | . . . . . . . . . . . Piercing Weapon . | . . . . . . . . . . . Special Melee Weapon . | . . . . . . . . . . . Unidentified Prototypes 3 | . . . 1 1 1 . . . . . Parts Lost 51 | . 2 . 3 8 5 . 4 21 8 . Power 9 | . 2 . 1 . 1 . 1 4 . . Propulsion 10 | . . . 1 3 2 . . 3 1 . Utility 20 | . . . . 3 2 . 3 5 7 . Weapon 12 | . . . 1 2 . . . 9 . . Highest Loss Streak 10 | . 1 . 1 2 3 . 2 10 7 . To Critical Strikes . | . . . . . . . . . . . Average Backups 7 | 1 5 7 6 9 9 7 9 8 3 2 Power . | . 1 . . 2 1 1 1 . . . Propulsion . | . 1 2 1 . . 1 1 1 . . Utility 3 | . . . . 2 4 4 4 4 2 1 Weapon 2 | . 3 4 3 3 2 1 1 1 . 1 Tool/Special . | . . . . . . . . . . . Unused Backups 15 | . 2 . 1 5 4 . 1 1 1 . Power 3 | . . . . 3 . . . . . . Propulsion 3 | . . . . 1 . . 1 1 . . Utility 2 | . . . . 1 1 . . . . . Weapon 6 | . 2 . 1 . 2 . . . 1 . Tool/Special 1 | . . . . . 1 . . . . . Average Slot Usage (%) 90 | . 99 100 95 93 98 99 96 90 37 10 Engine 9 | . 14 14 11 9 14 13 6 5 . . Core 1 | . . . . . . . 3 3 . . Treads 7 | . . . . . 4 20 17 14 . . Leg 1 | . . . . 2 6 . . . . . Wheel 9 | . 28 28 19 18 11 . . . 1 . Device 10 | . 13 14 11 14 7 12 13 10 6 . Storage 6 | . 14 14 11 9 7 6 4 4 . . Processor 6 | . . . . . 6 6 8 11 12 5 Hackware 5 | . . . . 3 7 6 5 5 14 5 Protection 6 | . . . 9 8 6 6 7 9 . . Energy Gun 11 | . 28 28 7 5 13 13 11 8 . . Energy Cannon 2 | . . . 10 11 . . . 4 . . Ballistic Gun 4 | . . . 15 9 3 6 5 1 1 . Ballistic Cannon 2 | . . . . . 5 6 5 2 . . Peak Build Rating 71 | 6 7 7 15 25 45 53 70 71 39 10 Average Rating 39 | 4 6 7 11 21 36 51 64 61 23 10 On Entrance 23 | . 6 7 7 15 25 45 52 70 23 10 Naked Turns . | . . . . . . . . . . . Heaviest Build 77 | 12 19 19 34 38 46 50 69 77 15 . Greatest Support 67 | 26 26 20 22 32 60 60 67 67 10 3 Greatest Overweight (x) 4 | . . . 2 3 4 . 1 1 4 . Average Overweight (x) . | . . . 1 1 1 . . . . . Largest Inventory Capacity 10 | 8 10 10 10 10 10 10 10 10 5 5 Average Capacity 9 | 6 8 10 10 10 10 10 9 9 5 5 Most Carried 10 | 3 8 7 10 10 10 9 10 10 5 3 Average Carried 8 | 1 6 7 6 9 9 8 9 8 4 3 Final Capacity 10 | 8 10 10 10 10 10 10 10 5 5 5 Final Carried 10 | 3 7 7 10 10 10 8 10 3 3 3 Class Distribution -------------------- 59% | Scavenger-Gunner 15% | Mutant 8% | Gunner 6% | Tank 5% | Hacker-Mutant 4% | Scavenger-Tank Dominant Class ---------------- Mutant | -10/Materials Mutant | -10/Mines Tank | -9/Materials Gunner | -8/Materials Scavenger-Gunner | -7/Factory Scavenger-Gunner | -6/Factory Scavenger-Gunner | -5/Factory Scavenger-Gunner | -5/Extension Hacker-Mutant | -4/Factory Mutant | -4/Upper Caves Resources | -11 -10 -10 -9 -8 -7 -6 -5 -5 -4 -4 ----------- Run | Yrd Mat Min Mat Mat Fac Fac Fac Ext Fac Upp Matter Collected 2773 | 260 60 . 117 300 669 84 557 601 . 125 Remotely . | . . . . . . . . . . . Salvage Created 5698 | 76 445 . 419 996 1170 165 1008 1419 . . Parts 255 | 1 22 . 27 48 63 3 43 48 . . Haulers Intercepted 5 | . 1 . . 2 2 . . . . . Recyclers Shooed 2 | . . . . . 1 . . 1 . . Parts Field Recycled . | . . . . . . . . . . . Retrieved Matter . | . . . . . . . . . . . Parts Self-Destructed 1 | . . . . . . . . . . 1 Prevented . | . . . . . . . . . . . Kills | -11 -10 -10 -9 -8 -7 -6 -5 -5 -4 -4 ------- Run | Yrd Mat Min Mat Mat Fac Fac Fac Ext Fac Upp Combat Hostiles Destroyed 92 | . 6 . 9 16 18 1 16 26 . . Guns 58 | . 6 . 3 9 14 1 15 10 . . Cannons 24 | . . . 4 4 4 . 1 11 . . AOE 8 | . . . 2 2 . . . 4 . . Classes Destroyed 15 | 1 5 . 3 2 3 . . 1 . . Worker 9 | . 2 . . 1 4 . 2 . . . Builder 6 | . 1 . 2 . . . 2 1 . . Tunneler 4 | . . . . . 2 2 . . . . Hauler 5 | . 1 . . 2 2 . . . . . Recycler 10 | 1 . . . 2 1 1 3 2 . . Operator 4 | . . . 1 1 . . . 2 . . Watcher 13 | . 3 . 1 2 4 . 2 1 . . Swarmer 15 | . . . 3 3 . . 4 5 . . Grunt 36 | . 6 . 3 9 7 . 1 10 . . Brawler 4 | . . . . . 4 . . . . . Duelist 2 | . . . . 2 . . . . . . Sentry 14 | . . . 3 1 2 1 2 5 . . Hunter 10 | . . . . 1 1 . 5 3 . . Programmer 9 | . . . . . 4 . 4 1 . . Behemoth 2 | . . . . . . . . 2 . . Best Kill Streak 6 | 1 3 . 6 3 5 2 6 4 . . Combat Bots Only 4 | . 2 . 3 3 4 1 4 4 . . Max Kills in Single Turn 3 | 1 2 . 3 2 2 1 3 2 . . Gunslinging . | . . . . . . . . . . . Exploded 2 | . . . 1 2 . . . 2 . . Melee . | . . . . . . . . . . . Uniques/NPCs Destroyed . | . . . . . . . . . . . Combat | -11 -10 -10 -9 -8 -7 -6 -5 -5 -4 -4 -------- Run | Yrd Mat Min Mat Mat Fac Fac Fac Ext Fac Upp Hostile Shots Fired 803 | . 25 . 28 102 116 27 102 265 71 67 Missed 242 | . 8 . 7 27 35 8 26 78 24 29 Hits 561 | . 17 . 21 75 81 19 76 187 47 38 Melee 4 | . . . . 4 . . . . . . Projectile 557 | . 17 . 21 71 81 19 76 187 47 38 AOE 1 | . 1 . . . . . . . . . Critical Strikes 15 | . 1 . . 5 1 . 2 5 1 . Damage Taken 10093 | . 368 . 359 1208 1183 152 1514 3732 987 590 Core 2141 | . 131 . 24 110 235 6 90 392 580 573 Absorbed by Shields 176 | . . . . . . . . 176 . . Regen/Repaired (Parts) 52 | . . . . . 52 . . . . . Core Remaining (%) 76 | 100 . 47 94 80 66 99 . 51 . . Volleys Fired 305 | 4 50 1 20 58 59 6 42 63 2 . Largest 4 | 2 2 2 3 3 3 4 4 4 1 . Hottest 265 | 100 100 100 133 204 195 223 223 265 88 . Shots Fired 874 | 8 100 2 56 153 169 21 157 206 2 . Gun 590 | 8 100 2 38 84 131 15 115 95 2 . Cannon 271 | . . . 18 69 38 6 42 98 . . Launcher 13 | . . . . . . . . 13 . . Special . | . . . . . . . . . . . Kinetic 292 | . . . 28 35 80 12 84 53 . . Thermal 559 | 8 100 2 18 118 89 9 73 140 2 . Explosive 13 | . . . . . . . . 13 . . Electromagnetic 10 | . . . 10 . . . . . . . Robot Hit Streak 32 | 3 12 4 9 13 18 20 24 32 . . Robot Miss Streak 9 | 1 6 . 6 7 9 2 6 5 3 . Penetration Max 1 | . . . . . 1 . . . . . Secondary Targets 1 | . . . . 1 . . . . . . Max Gunslinging Chain 1 | . . . . 1 . . . . . . Capacitor 2 | . . . . . . . . . 2 . Shots Hit Robots 570 | 5 50 2 27 85 118 14 106 163 . . Core Hits 422 | 2 23 . 18 36 84 13 120 126 . . Critical Kills . | . . . . . . . . . . . Critical Parts Destroyed 1 | . . . 1 . . . . . . . Critical Strikes 10 | 1 3 . 1 1 1 . . 3 . . Burn 6 | 1 3 . . 1 . . . 1 . . Destroy 1 | . . . 1 . . . . . . . Blast 3 | . . . . . 1 . . 2 . . Melee Attacks . | . . . . . . . . . . . Impact . | . . . . . . . . . . . Slashing . | . . . . . . . . . . . Piercing . | . . . . . . . . . . . Sneak Attacks . | . . . . . . . . . . . Combat Hostiles . | . . . . . . . . . . . Follow-up Attacks . | . . . . . . . . . . . Damage Inflicted 14157 | 62 646 25 716 2096 2664 332 2634 4982 . . Guns 8614 | 62 646 25 260 961 2174 239 2159 2088 . . Cannons 4198 | . . . 192 932 474 90 475 2035 . . Explosions 1326 | . . . 264 203 . . . 859 . . Melee . | . . . . . . . . . . . Ramming 19 | . . . . . 16 3 . . . . Kinetic 3385 | . . . 109 280 970 172 991 863 . . Thermal 9743 | 62 646 25 456 1816 1678 157 1643 3260 . . Explosive 859 | . . . . . . . . 859 . . Electromagnetic 151 | . . . 151 . . . . . . . Impact . | . . . . . . . . . . . Slashing . | . . . . . . . . . . . Piercing . | . . . . . . . . . . . Highest Corruption 8 | . . . . 3 2 . 1 1 7 8 Average Corruption 1 | . . . . 2 1 . 1 1 4 8 Corruption Purged . | . . . . . . . . . . . Corruption Blocked . | . . . . . . . . . . . Effects 21 | . . . . . 6 . 5 4 . 6 Message Errors 3 | . . . . . 2 . . . . 1 Matter Fused 5 | . . . . . 3 . 1 . . 1 Heat Flow Errors 1 | . . . . . . . . 1 . . Energy Discharges 3 | . . . . . . . 1 1 . 1 Data Loss (minor) 3 | . . . . . . . 1 . . 2 Data Loss (major) 1 | . . . . . . . . 1 . . Misfires 2 | . . . . . 1 . 1 . . . Alerts 3 | . . . . . . . 1 1 . 1 Overload Shots . | . . . . . . . . . . . Overflow Damage 113 | . . . 25 . 76 . . 12 . . Projectiles 14 | . . . 2 . . . . 12 . . Explosions 99 | . . . 23 . 76 . . . . . Melee . | . . . . . . . . . . . Knockbacks 15 | . . . . . 2 . 6 7 . . Impact . | . . . . . . . . . . . Kinetic 14 | . . . . . 2 . 5 7 . . Secondary 1 | . . . . . . . 1 . . . Self-Inflicted Damage 580 | . . . 114 96 222 . 111 37 . . Shots 10 | . . . 4 1 3 . 1 1 . . Rammed 2 | . . . . . 1 1 . . . . Targets Rammed 4 | . . . . . 3 1 . . . . Kicked 2 | . . . . . 2 . . . . . Crushed . | . . . . . . . . . . . Highest Temperature 407 | 176 258 39 310 255 143 97 372 407 49 . Average Temperature 97 | 97 81 24 123 87 42 47 123 125 32 . Received Heat Transfer 2084 | . 138 . 60 441 204 48 90 1019 75 9 Effects 3 | . . . 1 . . . . 2 . . Shutdowns 1 | . . . . . . . . 1 . . Energy Bleed 1 | . . . . . . . . 1 . . Interference 1 | . . . 1 . . . . . . . Siege Activations . | . . . . . . . . . . . Martial Activations . | . . . . . . . . . . . Shielding Activations . | . . . . . . . . . . . Robots Disrupted . | . . . . . . . . . . . Combat Hostiles . | . . . . . . . . . . . Robots Corrupted . | . . . . . . . . . . . Combat Hostiles . | . . . . . . . . . . . Parts Fried 1 | . . . 1 . . . . . . . Impact Corruptions . | . . . . . . . . . . . Robots Melted 2 | . . . . 1 . . . 1 . . Combat Hostiles 2 | . . . . 1 . . . 1 . . Parts Melted 28 | 2 4 . 1 4 3 . 4 10 . . Heat Transferred 16346 | 259 2146 74 633 2875 2796 300 2580 4683 . . Parts Sabotaged . | . . . . . . . . . . . Parts Stolen . | . . . . . . . . . . . Parts Stripped . | . . . . . . . . . . . Power Chain Reactions 5 | . . . 5 . . . . . . . Alert | -11 -10 -10 -9 -8 -7 -6 -5 -5 -4 -4 ------- Run | Yrd Mat Min Mat Mat Fac Fac Fac Ext Fac Upp Maximum Alert Level 2 | . . . . 1 1 . 1 2 . . Low Security (%) 72 | 100 100 100 100 55 56 100 87 48 100 . Level 1 27 | . . . . 44 43 . 12 48 . . Level 2 . | . . . . . . . . 2 . . Level 3 . | . . . . . . . . . . . Level 4 . | . . . . . . . . . . . Level 5 . | . . . . . . . . . . . High Security . | . . . . . . . . . . . Max Security . | . . . . . . . . . . . Peak Influence 441 | 5 63 . 162 304 276 135 256 441 153 . Initial 153 | . . . . 59 121 114 34 74 153 . Average 125 | . 17 . 75 159 163 93 93 180 100 . Influence Increases 4224 | 5 225 . 294 668 798 76 647 1106 105 300 Destroy 0b10 Robot/C 1960 | . 120 . 180 320 360 20 320 640 . . Destroy 0b10 Robot/NC 260 | 5 35 . 20 40 65 15 45 35 . . Destroy Leader 456 | . 48 . 52 68 100 10 94 84 . . Allied During Kill 44 | . . . . . 5 . . 39 . . Successful Hack 224 | . 19 . 13 33 72 29 38 20 . . Disable Machine 345 | . . . 15 105 150 . 15 45 15 . Destroy Structure 335 | . 3 . 14 57 31 2 90 138 . . Lose Combat Pursuer 600 | . . . . 45 15 . 45 105 90 300 Influence Decreases 3984 | 5 225 . 152 542 832 240 564 945 419 60 Entered New Map 626 | . . . . 83 147 120 36 79 161 . Time Decay 2518 | 5 215 . 132 379 595 120 338 476 198 60 Lost Part 460 | . 10 . 20 80 50 . 40 200 60 . Lost Ally 80 | . . . . . 40 . . 40 . . Purge Threat 300 | . . . . . . . 150 150 . . Squads Dispatched 14 | . 2 . 1 . 4 . 3 2 2 . Investigation 2 | . 1 . 1 . . . . . . . Extermination 7 | . . . . . 4 . 2 . 1 . Reinforcement 5 | . 1 . . . . . 1 2 1 . Assault . | . . . . . . . . . . . Garrison . | . . . . . . . . . . . Intercept . | . . . . . . . . . . . Searches Triggered . | . . . . . . . . . . . Construction Impeded 2 | . . . . . . . 1 1 . . Haulers Reinforced . | . . . . . . . . . . . Active Scanning Responses . | . . . . . . . . . . . Cargo Convoy Interrupts . | . . . . . . . . . . . Stealth | -11 -10 -10 -9 -8 -7 -6 -5 -5 -4 -4 --------- Run | Yrd Mat Min Mat Mat Fac Fac Fac Ext Fac Upp Distress Signals 7 | . 1 . . 3 . . . 3 . . Communications Jammed . | . . . . . . . . . . . Distress Signals . | . . . . . . . . . . . Times Spotted 191 | . 18 . 19 27 23 1 23 45 10 25 Peak Tracking Total 11 | . 3 . 4 4 4 1 5 9 5 11 Tactical Retreats 21 | . 2 . 3 2 1 . 2 2 3 6 Traps | -11 -10 -10 -9 -8 -7 -6 -5 -5 -4 -4 ------- Run | Yrd Mat Min Mat Mat Fac Fac Fac Ext Fac Upp Traps Triggered 11 | . 2 . . 3 5 . . 1 . . Indirectly . | . . . . . . . . . . . Trap Hack Attempts . | . . . . . . . . . . . Triggered . | . . . . . . . . . . . Disarmed 1 | . . . . 1 . . . . . . Reprogrammed . | . . . . . . . . . . . Reused . | . . . . . . . . . . . Traps Extracted . | . . . . . . . . . . . Installed . | . . . . . . . . . . . Triggered . | . . . . . . . . . . . Machines | -11 -10 -10 -9 -8 -7 -6 -5 -5 -4 -4 ---------- Run | Yrd Mat Min Mat Mat Fac Fac Fac Ext Fac Upp Machines Disabled 24 | . . . 1 7 10 . 1 4 1 . Max in Single Turn 6 | . . . 1 2 6 . 1 2 1 . Energy Cycler 1 | . . . . . . . . 1 . . Machines Repaired . | . . . . . . . . . . . Machines Dismantled . | . . . . . . . . . . . Machines Sabotaged . | . . . . . . . . . . . Overloaded Fab Kills . | . . . . . . . . . . . Hacking | -11 -10 -10 -9 -8 -7 -6 -5 -5 -4 -4 --------- Run | Yrd Mat Min Mat Mat Fac Fac Fac Ext Fac Upp Machines Accessed 46 | . 6 . 3 7 10 2 12 6 . . Terminals 32 | . 6 . 2 7 3 1 7 6 . . Fabricators 3 | . . . . . 3 . . . . . Repair Stations 2 | . . . . . 1 . 1 . . . Recycling Units 3 | . . . . . 2 . 1 . . . Scanalyzers 5 | . . . 1 . 1 1 2 . . . Garrison Access 1 | . . . . . . . 1 . . . Total Hacks 129 | . 16 . 13 32 23 4 27 14 . . Successful 73 | . 9 . 10 18 11 2 16 7 . . Failed 56 | . 7 . 3 14 12 2 11 7 . . Catastrophic 7 | . . . 1 1 1 1 2 1 . . Database Lockouts . | . . . . . . . . . . . Manual 64 | . 9 . 9 18 8 1 9 10 . . Terminals 97 | . 16 . 10 32 6 2 17 14 . . Fabricators 5 | . . . . . 5 . . . . . Repair Stations 5 | . . . . . 3 . 2 . . . Recycling Units 7 | . . . . . 5 . 2 . . . Scanalyzers 14 | . . . 3 . 4 2 5 . . . Garrison Access 1 | . . . . . . . 1 . . . Terminal Hacks 35 | . 5 . 5 11 2 . 7 5 . . Record 3 | . . . . 1 . . 2 . . . Robot Analysis 7 | . 1 . 4 2 . . . . . . Prototype ID Bank 4 | . 1 . . 3 . . . . . . Open Door 4 | . . . . . . . 1 3 . . Open DSF 1 | . . . . . 1 . . . . . Branch Access Points 2 | . . . . 1 . . 1 . . . Emergency Access Points 3 | . 1 . . 2 . . . . . . Terminal Index 2 | . 1 . . . . . 1 . . . Alert Level 1 | . . . . 1 . . . . . . Unreport Threat 2 | . . . . . . . 1 1 . . Locate Traps 3 | . 1 . 1 . 1 . . . . . Disarm Traps 1 | . . . . 1 . . . . . . Zone Layout 2 | . . . . . . . 1 1 . . Fabricator Hacks 1 | . . . . . 1 . . . . . Build 1 | . . . . . 1 . . . . . Repair Station Hacks 4 | . . . . . 3 . 1 . . . Scan Component 3 | . . . . . 2 . 1 . . . Repair 1 | . . . . . 1 . . . . . Recycling Unit Hacks 3 | . . . . . 1 . 2 . . . Retrieve Matter 2 | . . . . . 1 . 1 . . . Retrieve Components 1 | . . . . . . . 1 . . . Scanalyzer 8 | . . . 3 . . 1 4 . . . Insert Component 5 | . . . 2 . . 1 2 . . . Analyze 3 | . . . 1 . . . 2 . . . Garrison Access Hacks . | . . . . . . . . . . . Unauthorized Hacks 22 | . 4 . 2 7 4 1 2 2 . . Terminals 18 | . 4 . 2 7 . 1 2 2 . . Botnet 18 | . 4 . 2 7 . 1 2 2 . . Fabricators 2 | . . . . . 2 . . . . . Prioritize 1 | . . . . . 1 . . . . . Liberate 1 | . . . . . 1 . . . . . Repair Stations . | . . . . . . . . . . . Recycling Units 2 | . . . . . 2 . . . . . Recyclers 1 | . . . . . 1 . . . . . Mask 1 | . . . . . 1 . . . . . Scanalyzers . | . . . . . . . . . . . Garrison Access . | . . . . . . . . . . . Data Cores Recovered . | . . . . . . . . . . . Used . | . . . . . . . . . . . Hacking Detections 43 | . 6 . 3 7 10 2 11 4 . . Full Trace Events 2 | . . . 1 1 . . . . . . Feedback Events . | . . . . . . . . . . . Feedback Blocked . | . . . . . . . . . . . Robot Schematics Acquired . | . . . . . . . . . . . Robots Built 2 | . . . . . 2 . . . . . Authchips . | . . . . . . . . . . . Time 20 | . . . . . 20 . . . . . Total Robot Build Rating 2 | . . . . . 2 . . . . . Part Schematics Acquired 3 | . . . 1 . . . 2 . . . Parts Built . | . . . . . . . . . . . Authchips . | . . . . . . . . . . . Time . | . . . . . . . . . . . Total Part Build Rating . | . . . . . . . . . . . Parts Repaired 1 | . . . . . 1 . . . . . Time 16 | . . . . . 16 . . . . . Parts Recycled . | . . . . . . . . . . . Recycled Matter . | . . . . . . . . . . . Retrieved Matter 206 | . . . . . 206 . . . . . Retrieved Components 7 | . . . . . . . 7 . . . Parts Scanalyzed 3 | . . . 1 . . . 2 . . . Part Schematics Acquired 3 | . . . 1 . . . 2 . . . Parts Damaged . | . . . . . . . . . . . Bothacking | -11 -10 -10 -9 -8 -7 -6 -5 -5 -4 -4 ------------ Run | Yrd Mat Min Mat Mat Fac Fac Fac Ext Fac Upp Used RIF Installer . | . . . . . . . . . . . Robots Hacked . | . . . . . . . . . . . Non-combat . | . . . . . . . . . . . Combat . | . . . . . . . . . . . Robot Hacks Applied . | . . . . . . . . . . . Relay Couplers Released . | . . . . . . . . . . . Fabnet Peak Effective % . | . . . . . . . . . . . Robots Rewired . | . . . . . . . . . . . Allies Hacked . | . . . . . . . . . . . Hacks Repelled . | . . . . . . . . . . . Allies | -11 -10 -10 -9 -8 -7 -6 -5 -5 -4 -4 -------- Run | Yrd Mat Min Mat Mat Fac Fac Fac Ext Fac Upp Total Allies 16 | . . . . . 14 . . 2 . . Largest Group 5 | . . . . . 5 . . 1 . . Highest-Rated Group 159 | . . . . . 104 . . 159 . . Highest-Rated Ally 159 | . . . . . 31 . . 159 . . Total Orders 1 | . . . . . 1 . . . . . COLLECT 1 | . . . . . 1 . . . . . Ally Attacks 50 | . . . . . 14 . . 36 . . Total Damage 1501 | . . . . . 226 . . 1275 . . Kills 7 | . . . . . . . . 7 . . Allies Corrupted 1 | . . . . . 1 . . . . . Allies Melted . | . . . . . . . . . . . Intel | -11 -10 -10 -9 -8 -7 -6 -5 -5 -4 -4 ------- Run | Yrd Mat Min Mat Mat Fac Fac Fac Ext Fac Upp Active Infowar (turns) 1625 | . 693 79 330 131 . . . 32 360 . Sensors 204 | . . . . . . . . . 204 . Seismic 188 | . . . . . . . . 32 156 . ECM 1233 | . 693 79 330 131 . . . . . . Robot Analysis Total 7 | . 1 . 4 2 . . . . . . Derelict Logs Recovered 1 | . . . . . . . . . . 1 Drone Launches . | . . . . . . . . . . . Drone Recoveries . | . . . . . . . . . . . Exploration | -11 -10 -10 -9 -8 -7 -6 -5 -5 -4 -4 ------------- Run | Yrd Mat Min Mat Mat Fac Fac Fac Ext Fac Upp Turns Passed 7473 | 59 707 79 330 913 1889 248 1421 1245 436 146 Spaces Moved 4687 | 39 582 95 229 593 1235 133 506 566 418 291 Core 698 | 3 . . . . . . . 129 275 291 Treads 1245 | . . . . . 206 133 506 400 . . Legs 135 | . . . . 1 134 . . . . . Wheels 2609 | 36 582 95 229 592 895 . . 37 143 . Hover . | . . . . . . . . . . . Flight . | . . . . . . . . . . . Fastest Speed 50 | 50 80 80 80 98 95 170 170 50 50 50 Average Speed 124 | 89 84 80 95 104 123 170 249 175 60 50 Slowest Speed 330 | 100 90 80 110 330 330 170 250 250 250 50 Overloaded Moves . | . . . . . . . . . . . Propulsion Burnouts . | . . . . . . . . . . . Robots Hopped . | . . . . . . . . . . . Potential Cave-ins . | . . . . . . . . . . . Cave-ins Triggered . | . . . . . . . . . . . Exploration Rate (%) 31 | 4 79 29 22 48 28 4 18 65 6 44 Regions Visited 10 Branch Regions 3 Pre-discovered Areas 1 | . . 1 . . . . . . . . Known Exits Taken 3 | . . . . . 1 . 1 . 1 . Unknown Exits Taken 7 | 1 1 1 1 1 . 1 . 1 . . Scrap Searched 1 | . . . . . . . . . . 1 Spaces Dug 1 | . . . . . . . 1 . . . Terrain Destroyed 276 | . . . 11 59 27 1 51 127 . . Melee . | . . . . . . . . . . . Projectile 41 | . . . . 9 7 1 9 15 . . AOE 235 | . . . 11 50 20 . 42 112 . . Terrain Rammed . | . . . . . . . . . . . Walls Destroyed . | . . . . . . . . . . . Machines Disabled . | . . . . . . . . . . . Actions | -11 -10 -10 -9 -8 -7 -6 -5 -5 -4 -4 --------- Run | Yrd Mat Min Mat Mat Fac Fac Fac Ext Fac Upp Total 5691 | 51 696 95 299 775 1460 143 578 699 604 291 Wait 424 | . 45 . 30 71 88 . 5 29 156 . Move 4677 | 38 581 94 228 592 1234 132 505 565 417 291 Hop . | . . . . . . . . . . . Pick Up 62 | 3 8 . 6 16 9 1 11 5 3 . Fast Attach 59 | 6 2 . 4 7 24 . 4 9 3 . Attach 47 | . 1 . 3 10 5 2 5 12 9 . Detach 13 | . . . . 1 2 . 1 1 8 . Swap 24 | . 3 . 3 4 8 . 2 4 . . Drop 74 | . 6 . 5 16 28 1 3 9 6 . Fire 305 | 4 50 1 20 58 59 6 42 63 2 . Melee . | . . . . . . . . . . . Ram . | . . . . . . . . . . . Kick 2 | . . . . . 2 . . . . . Crush 2 | . . . . . 1 1 . . . . Escape Stasis 2 | . . . . . . . . 2 . . Rewire . | . . . . . . . . . . . Trap . | . . . . . . . . . . . Miscellaneous . | . . . . . . . . . . . Route ------- -11/Scrapyard -10/Materials (discovered 4 exits: *Mat x2 / [*Min x2]) -10/Mines -9/Materials (discovered 2 exits: *Mat / [*Min]) -8/Materials (discovered 4 exits: *Fac x2 / *Sto x2) -7/Factory -6/Factory -5/Factory (discovered 6 exits: [*Fac x2] / *Upp x2 / *Ext x2) -5/Extension -4/Factory -4/Upper Caves History --------- Turn | Location | Event 18 | -11/Scrapyard | Discovered new exit (range 15) 60 | -11/Scrapyard | Entered Materials 82 | -10/Materials | Discovered new exit (range 6) 310 | -10/Materials | Discovered new exit (range 16) 313 | -10/Materials | Build established: Mutant 450 | -10/Materials | Discovered new exit (range 14) 524 | -10/Materials | Discovered new exit (range 15) 678 | -10/Materials | Core integrity fell below 50% 767 | -10/Materials | Entered Mines 768 | -10/Mines | Learned location of Storage (-8) 841 | -10/Mines | Discovered new exit (range 7) 846 | -10/Mines | Entered Materials 846 | -9/Materials | Evolved 2 slots: Utility x1, Weapon x1 1072 | -9/Materials | Discovered new exit (range 8) 1085 | -9/Materials | Discovered new exit (range 16) 1176 | -9/Materials | Entered another Materials area 1176 | -8/Materials | Evolved 2 slots: Propulsion x1, Utility x1 1198 | -8/Materials | Build established: Tank 1260 | -8/Materials | Identified exit to Storage 1306 | -8/Materials | Discovered new exit (range 13) 1588 | -8/Materials | Build established: Gunner 2000 | -8/Materials | Discovered new exit (range 15) 2089 | -8/Materials | Entered Factory 2089 | -7/Factory | Evolved 2 slots: Power x1, Utility x1 2349 | -7/Factory | Fabricated R-06 Scavenger (x2) 2451 | -7/Factory | Build established: Scavenger-Gunner 2948 | -7/Factory | Repaired Imp. Ion Engine 3191 | -7/Factory | Lost 3 parts (2n1u) 3586 | -7/Factory | Discovered new exit (range 13) 3719 | -7/Factory | Identified exit to Factory 3978 | -7/Factory | Entered another Factory area 3978 | -6/Factory | Evolved 2 slots: Utility x1, Weapon x1 4142 | -6/Factory | Discovered new exit (range 16) 4226 | -6/Factory | Entered another Factory area 4226 | -5/Factory | Evolved 2 slots: Utility x2 4289 | -5/Factory | Identified exit to Upper Caves 4289 | -5/Factory | Identified exit to Extension 4651 | -5/Factory | Discovered new exit (range 10) 4666 | -5/Factory | Discovered new exit (range 7) 5647 | -5/Factory | Entered Extension 5754 | -5/Extension | Rescued a captive Derelict 5923 | -5/Extension | Rescued A7 5928 | -5/Extension | Energy Cycler disabled 5939 | -5/Extension | Rescued a captive Derelict 5947 | -5/Extension | Disrupted transfer network 6258 | -5/Extension | Spotted B-75 Beast 6282 | -5/Extension | Spotted B-75 Beast 6304 | -5/Extension | Extracted ID and sensor layout for unrecognized location from A7's data core 6345 | -5/Extension | Destroyed B-75 Beast 6366 | -5/Extension | Destroyed B-75 Beast 6388 | -5/Extension | Lost 6 parts (2p1n1u2w) 6410 | -5/Extension | Discovered new exit (range 14) 6716 | -5/Extension | Lost 3 parts (1u2w) 6798 | -5/Extension | Lost 10 parts (1p2n3u4w) 6892 | -5/Extension | Entered Factory 6892 | -4/Factory | Evolved 2 slots: Propulsion x1, Weapon x1 7001 | -4/Factory | Found Quantum Capacitor 7155 | -4/Factory | Build established: Hacker-Mutant 7321 | -4/Factory | Discovered new exit (range 14) 7324 | -4/Factory | Core integrity fell below 50% 7328 | -4/Factory | Identified exit to Upper Caves 7328 | -4/Factory | Entered Upper Caves 7330 | -4/Upper Caves | Attracted the attention of an 0b10 checkpoint 7331 | -4/Upper Caves | Learned Research security intel 7359 | -4/Upper Caves | Lost 7 parts (7u) 7459 | -4/Upper Caves | Core integrity fell below 20% 7474 | -4/Upper Caves | Destroyed by S-27 Virus with Autogun Last Messages --------------- Data stored: Research security intel. 07336_ #REFTJ| MWQ PGDKL0